Cogmind - Beta 15 @@@ ROGUE MODE // 2025.05.26 @ 02:29:36 Player: cptwinky Result: Destroyed by Executioner with Helical Railgun Performance ------------- Evolutions (7) 3500 Regions Visited (27) 5400 Robots Destroyed (334) 1670 Value Destroyed (18800) 18800 Prototype IDs (61) 1220 Alien Tech Used (0) 0 Bonus (15713) 15713 TOTAL SCORE: 46303 Bonus ------- Triggered Max Security 1000 High Alert Combat Kills 5255 Follower Combat Kills 2786 Entered Garrisons 1600 Used RIF Installer 4000 Aligned with FarCom 300 Met Data Miner 300 Scanned by Researcher 500 Friendly Fire -28 Cogmind --------- Core Integrity 0/1300 Matter 271/300 Energy 100/100 System Corruption 23% Temperature Cool (0) Movement Core (50) Location -3/Testing Parts ------- > --- POWER (1) -------- (None) > --- PROPULSION (2) --- Centrium Wheel > --- UTILITY (16) ----- Advanced Coolant Injector Advanced Targeting Computer Core Analyzer > --- WEAPON (2) ------- (None) > --- INVENTORY (5) ---- Energy Well (350) Relay Coupler [NC] (27) Relay Coupler [Sentry] (25) Relay Coupler [Hunter] (24) Advanced Remote Datajack Peak State ------------ > --- POWER ------------ Reinforced Fission Core > --- PROPULSION ------- Heavy Treads > --- UTILITY ---------- Experimental Power Amplifier Advanced Cooling System Advanced Coolant Injector Huge Storage Unit Enhanced Optical Array Advanced Signal Interpreter Advanced Targeting Computer Core Analyzer Core Analyzer Launcher Loader Advanced Weapon Cycler Makeshift Transmission Jammer Improved Phase Shifter Advanced Focal Shield Advanced Force Field > --- WEAPON ----------- Hypervelocity Mass Driver Fusion Bomb Launcher > --- INVENTORY -------- Light Antimatter Reactor Armored Huge Wheel Centrium Wheel Energy Well Experimental Matter Compressor Relay Coupler [NC] Relay Coupler [Sentry] Relay Coupler [Hunter] Long-range Tractor Beam Nova Cannon Hypervelocity Mass Driver Heavy Linear Accelerator Fusion Bomb Launcher Fusion Bomb Launcher Improved Datajack Advanced Remote Datajack Advanced Remote Datajack Advanced Remote Datajack Improved Plasma Cutter Power Maul [Rating: 135] Favorites ----------- Power Fission Core Engine Light Ion Engine Power Core Fission Core Reactor Particle Reactor Propulsion Armored Wheel Treads Light Treads Leg Aluminum Leg Wheel Armored Wheel Utility Huge Storage Unit Device Makeshift Transmission Jammer Storage Huge Storage Unit Processor Advanced Targeting Computer Hackware Relay Coupler [NC] Protection Hardened Heavy Armor Plating Weapon Heavy Linear Accelerator Energy Gun Improved EM Shotgun Energy Cannon Improved EM Pulse Cannon Ballistic Gun Gauss Rifle Ballistic Cannon Heavy Linear Accelerator Launcher Heavy Rocket Launcher Special Weapon Improved Remote Datajack Impact Weapon Power Maul Slashing Weapon Axe Special Melee Weapon Datajack Build | -11 -10 -10 -10 -9 -8 -8 -8 -8 -7 -7 -7 -7 -6 -6 -6 -6 -6 -6 -5 -5 -5 -4 -4 -4 -4 -3 -3 ------- Run | Yrd Mat Min Exi Min Mat Gar Mat Gar Fac Gar Fac Gar Fac Gar Fac Low Low Dat Pro Fac Gar Fac Gar Fac Gar Res Tes Slots Evolved 14 | . . . . . 4 . . . 2 . . . 2 . . . . . . 2 . 2 . . . 2 . Power . | . . . . . . . . . . . . . . . . . . . . . . . . . . . . Propulsion . | . . . . . . . . . . . . . . . . . . . . . . . . . . . . Utility 14 | . . . . . 4 . . . 2 . . . 2 . . . . . . 2 . 2 . . . 2 . Weapon . | . . . . . . . . . . . . . . . . . . . . . . . . . . . . Parts Attached 232 | 6 5 1 3 . 7 19 16 23 5 17 11 14 2 6 7 4 . . 2 11 15 6 7 6 5 28 6 Power 18 | 1 1 . . . . 4 1 1 . 3 . 1 . . 1 1 . . 1 1 . . . . . 1 1 Engine 8 | 1 1 . . . . 1 1 1 . 2 . 1 . . . . . . . . . . . . . . . Core 8 | . . . . . . 3 . . . 1 . . . . 1 1 . . . 1 . . . . . . 1 Reactor 2 | . . . . . . . . . . . . . . . . . . . 1 . . . . . . 1 . Propulsion 28 | 2 . . 1 . 1 4 4 5 1 3 1 1 . . . . . . . 2 . . . . . 1 2 Treads 11 | 2 . . 1 . 1 . 2 1 1 1 . 1 . . . . . . . . . . . . . . 1 Leg 4 | . . . . . . 2 1 . . . . . . . . . . . . 1 . . . . . . . Wheel 13 | . . . . . . 2 1 4 . 2 1 . . . . . . . . 1 . . . . . 1 1 Hover . | . . . . . . . . . . . . . . . . . . . . . . . . . . . . Flight . | . . . . . . . . . . . . . . . . . . . . . . . . . . . . Utility 129 | 1 3 . 1 . 5 5 2 9 4 6 6 8 2 5 5 2 . . . 8 13 5 7 6 3 22 1 Device 39 | . 1 . . . 2 1 . 2 . 1 2 . 2 1 . 1 . . . 5 7 1 2 1 2 7 1 Storage 8 | 1 1 . 1 . . 1 . . . . . . . 1 . . . . . 1 . . . . . 2 . Processor 16 | . . . . . . 1 . 1 2 . . 1 . . 4 . . . . 1 1 . . . . 5 . Hackware 44 | . . . . . 1 1 2 4 1 2 3 5 . 1 . . . . . 1 5 2 3 4 1 8 . Protection 22 | . 1 . . . 2 1 . 2 1 3 1 2 . 2 1 1 . . . . . 2 2 1 . . . Artifact . | . . . . . . . . . . . . . . . . . . . . . . . . . . . . Weapon 57 | 2 1 1 1 . 1 6 9 8 . 5 4 4 . 1 1 1 . . 1 . 2 1 . . 2 4 2 Energy Gun 15 | . . . . . 1 5 5 2 . 2 . . . . . . . . . . . . . . . . . Energy Cannon 4 | . . . . . . . . . . 1 2 . . . . . . . . . . 1 . . . . . Ballistic Gun 9 | 2 . . . . . . 2 3 . 2 . . . . . . . . . . . . . . . . . Ballistic Cannon 10 | . 1 . . . . . . 1 . . 2 1 . . 1 . . . 1 . . . . . 2 1 . Launcher 6 | . . . . . . . 1 . . . . 2 . . . . . . . . . . . . . 1 2 Special Weapon 9 | . . 1 . . . 1 . 1 . . . 1 . 1 . . . . . . 2 . . . . 2 . Impact Weapon 1 | . . . . . . . . . . . . . . . . 1 . . . . . . . . . . . Slashing Weapon 1 | . . . . . . . 1 . . . . . . . . . . . . . . . . . . . . Piercing Weapon . | . . . . . . . . . . . . . . . . . . . . . . . . . . . . Special Melee Weapon 2 | . . . 1 . . . . 1 . . . . . . . . . . . . . . . . . . . Unidentified Prototypes 4 | . . . . . . . 1 . . . . . . 1 . . . . . . . . . . . 2 . Parts Lost 61 | . . . . . 1 8 1 3 . 11 . 2 . 1 . . . . . . 6 . . . 2 3 23 Power 7 | . . . . . . 3 . . . 1 . . . . . . . . . . 1 . . . . . 2 Propulsion 5 | . . . . . . 2 1 . . . . . . . . . . . . . . . . . . . 2 Utility 33 | . . . . . 1 1 . 3 . 6 . 2 . 1 . . . . . . 3 . . . 2 2 12 Weapon 16 | . . . . . . 2 . . . 4 . . . . . . . . . . 2 . . . . 1 7 Highest Loss Streak 15 | . . . . . 1 3 1 1 . 3 . 2 . 1 . . . . . . 2 . . . 2 2 15 To Critical Strikes . | . . . . . . . . . . . . . . . . . . . . . . . . . . . . Average Backups 20 | 3 8 9 10 10 9 13 24 24 24 24 24 22 22 21 21 21 22 21 21 21 21 21 20 20 20 21 18 Power . | . . . . . . . . 1 1 . 1 . . . 1 1 1 1 . . . . 1 1 1 . . Propulsion 2 | 1 2 3 2 2 2 2 2 2 4 4 4 3 2 2 1 1 1 1 1 1 1 1 2 2 2 2 1 Utility 10 | . 2 3 4 5 4 5 10 11 11 11 11 9 10 10 9 11 12 12 12 12 12 12 11 10 10 10 6 Weapon 4 | . 2 2 2 2 2 2 8 6 5 4 5 5 5 4 4 3 4 4 3 3 3 3 3 3 3 4 4 Tool/Special . | . . . . . . . . . . . . . . . . . . . . . . . . . . . . Unused Backups 44 | . 5 1 1 . . 1 5 2 . 7 . 4 . . . . . . 1 1 . . 2 . 3 4 7 Power 3 | . . 1 . . . . . . . . . 1 . . . . . . . . . . . . 1 . . Propulsion 6 | . 2 . . . . 1 2 . . . . . . . . . . . . . . . . . . 1 . Utility 25 | . 2 . 1 . . . 1 1 . 7 . 3 . . . . . . . 1 . . 2 . 1 2 4 Weapon 4 | . 1 . . . . . 2 1 . . . . . . . . . . . . . . . . . . . Tool/Special 6 | . . . . . . . . . . . . . . . . . . . 1 . . . . . 1 1 3 Average Slot Usage (%) 90 | . 98 100 100 100 83 98 99 98 99 98 97 84 78 79 81 85 86 92 89 84 83 86 86 83 79 89 79 Engine 2 | . 14 14 14 14 9 1 1 9 7 5 . 3 . . . . . . . . . . . . . . . Core 2 | . . . . . . 7 7 . . 1 7 3 6 6 6 6 6 6 4 3 3 . . . . . 2 Reactor 1 | . . . . . . . . . . . . . . . . . . . 1 1 1 5 5 5 5 4 1 Treads 3 | . 28 28 28 28 18 7 2 2 1 . . 1 . . . . . . . . . . . . . . 1 Wheel 7 | . . . . . . 2 15 15 13 14 14 6 6 6 9 13 13 13 13 8 5 5 5 5 5 4 2 Device 12 | . 4 . . . 9 19 18 10 15 5 4 3 11 13 6 5 6 6 5 10 15 24 18 16 18 23 31 Storage 7 | . 14 14 14 14 9 9 9 9 7 7 7 7 6 6 6 6 6 6 6 5 5 5 5 5 5 4 3 Processor 16 | . . . . . . 3 . 3 20 23 22 18 20 20 24 26 26 26 26 23 20 21 21 21 21 23 24 Hackware 10 | . . . . . 8 9 13 12 1 7 10 17 13 9 6 6 6 6 6 10 17 11 16 18 13 15 . Protection 10 | . 8 14 14 14 11 12 12 17 15 15 14 10 6 8 13 13 13 13 12 11 4 7 7 5 5 2 . Energy Gun 1 | . . . . . . 14 8 6 . . . . . . . . . . . . . . . . . . . Ballistic Gun 3 | . 25 13 14 14 8 . 8 5 10 10 . . . . . . . . . . . . . . . . . Ballistic Cannon 3 | . 3 14 5 14 9 1 . . . . 2 4 6 5 6 5 6 . 2 5 3 4 3 4 5 5 3 Peak Build Rating 135 | 6 8 8 9 9 17 35 37 39 47 52 52 67 77 82 75 70 69 69 74 87 93 104 108 109 108 131 135 Average Rating 63 | 5 6 8 8 9 14 22 31 34 45 46 46 58 76 76 71 68 69 62 66 82 83 101 103 105 102 116 113 On Entrance 56 | . 6 8 8 9 9 17 35 31 34 47 44 52 67 77 75 70 69 69 62 74 87 93 104 108 105 105 126 Naked Turns . | . . . . . . . . . . . . . . . . . . . . . . . . . . . . Heaviest Build 167 | 11 21 21 21 21 29 102 107 117 118 118 116 137 141 144 144 151 145 145 155 155 150 158 163 163 166 164 167 Greatest Support 70 | 40 40 40 40 40 40 40 20 40 24 24 28 40 28 28 28 24 24 24 24 30 28 28 28 28 28 28 70 Greatest Overweight (x) 11 | . . . . . . 9 10 11 4 4 4 4 5 5 5 6 6 6 6 7 5 5 5 5 5 5 5 Average Overweight (x) 4 | . . . . . . 1 6 5 4 4 3 3 4 4 4 5 6 5 5 5 4 4 4 4 4 4 4 Largest Inventory Capacity 25 | 8 10 10 10 10 10 25 25 25 25 25 25 25 25 25 25 25 25 25 25 25 25 25 25 25 25 25 25 Average Capacity 22 | 7 8 10 10 10 10 16 25 25 25 25 25 25 25 25 25 25 25 25 25 25 25 25 25 25 25 25 24 Most Carried 25 | 7 10 10 10 10 10 25 25 25 25 25 25 25 25 25 25 25 25 25 25 25 25 25 25 25 25 25 24 Average Carried 22 | 3 8 9 9 10 9 13 24 24 24 24 24 24 25 24 24 24 25 24 24 24 24 24 24 24 24 24 20 Final Capacity 25 | 8 10 10 10 10 10 25 25 25 25 25 25 25 25 25 25 25 25 25 25 25 25 25 25 25 25 25 5 Final Carried 25 | 7 10 10 10 10 10 25 25 25 25 24 25 25 25 25 24 25 25 25 25 25 25 24 25 25 25 24 5 Class Distribution -------------------- 25% | Botlord-Mutant 20% | Botlord-Skirmisher 18% | Bothacker-Mutant 13% | Mutant 9% | Bothacker-Skirmisher 9% | Scavenger-Mutant 3% | Bothacker-Assassin Dominant Class ---------------- Mutant | -10/Materials Mutant | -10/Mines Mutant | -10/Exiles Mutant | -9/Mines Mutant | -8/Materials Scavenger-Mutant | -8/Garrison Scavenger-Mutant | -8/Materials Bothacker-Mutant | -8/Garrison Bothacker-Skirmisher | -7/Factory Bothacker-Skirmisher | -7/Garrison Bothacker-Skirmisher | -7/Factory Bothacker-Mutant | -7/Garrison Botlord-Skirmisher | -6/Factory Botlord-Skirmisher | -6/Garrison Botlord-Skirmisher | -6/Factory Botlord-Skirmisher | -6/Lower Caves Botlord-Skirmisher | -6/Lower Caves Botlord-Skirmisher | -6/Data Miner Botlord-Skirmisher | -5/Proximity Caves Botlord-Skirmisher | -5/Factory Botlord-Mutant | -5/Garrison Botlord-Mutant | -4/Factory Botlord-Mutant | -4/Garrison Botlord-Mutant | -4/Factory Botlord-Mutant | -4/Garrison Botlord-Mutant | -3/Research Mutant | -3/Testing Resources | -11 -10 -10 -10 -9 -8 -8 -8 -8 -7 -7 -7 -7 -6 -6 -6 -6 -6 -6 -5 -5 -5 -4 -4 -4 -4 -3 -3 ----------- Run | Yrd Mat Min Exi Min Mat Gar Mat Gar Fac Gar Fac Gar Fac Gar Fac Low Low Dat Pro Fac Gar Fac Gar Fac Gar Res Tes Matter Collected 17441 | 260 443 76 80 . 123 370 522 1104 363 819 827 1386 42 580 160 560 114 . 484 379 1490 428 702 489 1342 2986 1312 Remotely 2285 | . . . . . . 20 . . . . . . . . . . . . . . 56 . . . 605 743 861 Salvage Created 11134 | 41 427 103 . . 123 679 531 1355 289 741 375 423 . 184 . 299 9 . 216 224 246 179 323 236 450 1745 1936 Parts 507 | 4 26 10 . . 7 36 30 66 17 28 16 18 . 11 . 10 . . 5 5 14 15 10 20 25 90 44 Haulers Intercepted 6 | . 2 . . . . . 3 . . . . . . . . . . . . . . . . . . 1 . Recyclers Shooed 6 | . . 1 . . . . 1 . . . . . . . . . . . . 2 . . . . . 2 . Parts Field Recycled . | . . . . . . . . . . . . . . . . . . . . . . . . . . . . Retrieved Matter . | . . . . . . . . . . . . . . . . . . . . . . . . . . . . Parts Self-Destructed 30 | . . . . . . . . . . . . . . . . 18 8 . 4 . . . . . . . . Prevented 3 | . . . . . . . . . . . . . . . . 1 2 . . . . . . . . . . Kills | -11 -10 -10 -10 -9 -8 -8 -8 -8 -7 -7 -7 -7 -6 -6 -6 -6 -6 -6 -5 -5 -5 -4 -4 -4 -4 -3 -3 ------- Run | Yrd Mat Min Exi Min Mat Gar Mat Gar Fac Gar Fac Gar Fac Gar Fac Low Low Dat Pro Fac Gar Fac Gar Fac Gar Res Tes Combat Hostiles Destroyed 288 | . 7 5 . . 3 17 9 31 5 18 7 16 . 12 . 9 . . 10 1 14 6 9 2 18 20 69 Melee 2 | . . . . . . . . 1 . . . 1 . . . . . . . . . . . . . . . Guns 55 | . 7 1 . . 1 14 7 8 5 12 . . . . . . . . . . . . . . . . . Cannons 119 | . . 4 . . 2 2 . 5 . . 6 11 . 8 . 6 . . 4 1 8 6 9 2 18 20 7 AOE 107 | . . . . . . . 2 15 . 6 . 3 . 4 . 3 . . 6 . 6 . . . . . 62 Classes Destroyed 25 | 1 4 1 . . 1 3 2 2 . 1 . . . . . . 1 . 1 . 1 . 1 1 . 1 4 Worker 2 | . . . . . . . 1 . . . . . . . . . . . . . . . . 1 . . . Builder 10 | . . . . . . . . . . . . . . . . . . . . . . . . 3 . 7 . Tunneler 4 | 2 . . . . . . . . 1 . . . . . . . . . . . . 1 . . . . . Hauler 6 | . 2 . . . . . 3 . . . . . . . . . . . . . . . . . . 1 . Recycler 8 | . 1 . . . . . 1 . . . . . . . . . . . . 2 . . . 1 . 3 . Carrier 1 | . . . . . . . . . . . . . . . . . . . . . . . . . . . 1 Minesweeper 2 | . . . . . . . . . . . . . . . . . 1 . 1 . . . . . . . . Mechanic 5 | . . . . . . . 1 . . . . 1 . . . . . . . . . . . . . . 3 Operator 2 | . 1 . . . . . . . . . 1 . . . . . . . . . . . . . . . . Drone 3 | . . . . . . . . . . . . . . . . . . . 2 . . 1 . . . . . Watcher 3 | . . . . . . 1 1 . . . 1 . . . . . . . . . . . . . . . . Swarmer 63 | . . 3 . . . 4 3 12 . 7 2 . . 8 . 3 . . 1 . 8 3 1 . 8 . . Cutter 4 | . . . . . . . . . . . . . . . . . . . . . . . 4 . . . . Saboteur 5 | . . . . . . . . . . . . . . . . . . . . . . . . . . . 5 Grunt 117 | . 7 2 . . 2 9 4 11 2 1 3 9 . 3 . 3 . . 3 . 1 . 2 1 4 10 40 Brawler 16 | . . . . . . . . 1 . 2 . . . . . 1 . . 3 . . . . . . 1 8 Duelist 10 | . . . . . . . . . . 1 . 2 . . . 1 . . . . . . . . . . 6 Protector 5 | . . . . . . . . . . . . . . . . . . . . . . . . . . 1 4 Sentry 17 | . . . . . 1 1 2 2 2 2 . . . 1 . 1 . . 1 1 1 1 1 . . . . Specialist 5 | . . . . . . . . 2 . 3 . . . . . . . . . . . . . . . . . Hunter 6 | . . . . . . 1 . . . . 1 . . . . . . . . . 1 1 . . . . 2 Programmer 35 | . . . . . . 2 . 3 1 3 1 5 . . . . . . . . 2 . . 2 5 8 3 Behemoth 4 | . . . . . . . . . . . . . . . . . . . . . 1 . 2 . 1 . . Investigator 1 | . . . . . . . . . . . . . . . . . . . . . . . . . . . 1 Executioner 1 | . . . . . . . . . . . . . . . . . . . . . . . . . . . 1 Packrat 1 | . . . . . . . . . . . . . . . . 1 . . . . . . . . . . . Best Kill Streak 32 | 2 2 2 . . 2 4 4 6 2 3 4 4 . 4 . 3 1 . 4 1 3 2 4 3 6 12 32 Combat Bots Only 29 | . 2 2 . . 2 4 3 6 2 3 4 4 . 4 . 3 . . 4 1 3 2 4 1 6 8 29 Max Kills in Single Turn 5 | 1 1 1 . . 1 1 3 3 2 2 1 2 . 3 . 3 1 . 1 1 3 1 1 2 1 3 5 Gunslinging 1 | . . . . . . . 1 . . . . . . . . . . . . . . . . . . . . Exploded 4 | . . . . . . . 2 3 . 2 . 2 . 3 . 3 . . 1 . 3 . . . . . 4 Melee 1 | . . . . . . . . 1 . . . 1 . . . . . . . . . . . . . . . Uniques/NPCs Destroyed . | . . . . . . . . . . . . . . . . . . . . . . . . . . . . Combat | -11 -10 -10 -10 -9 -8 -8 -8 -8 -7 -7 -7 -7 -6 -6 -6 -6 -6 -6 -5 -5 -5 -4 -4 -4 -4 -3 -3 -------- Run | Yrd Mat Min Exi Min Mat Gar Mat Gar Fac Gar Fac Gar Fac Gar Fac Low Low Dat Pro Fac Gar Fac Gar Fac Gar Res Tes Hostile Shots Fired 1396 | . 42 16 . . 15 101 28 115 25 209 34 70 . 71 . 11 11 . 31 2 123 22 46 16 72 68 268 Missed 414 | . 14 3 . . 1 22 8 29 9 70 9 20 . 24 . 5 5 . 5 . 42 12 21 1 16 17 81 Hits 982 | . 28 13 . . 14 79 20 86 16 139 25 50 . 47 . 6 6 . 26 2 81 10 25 15 56 51 187 Melee 3 | . . . . . . . . 1 . . . . . . . . . . . . . . . . . . 2 Projectile 979 | . 28 13 . . 14 79 20 85 16 139 25 50 . 47 . 6 6 . 26 2 81 10 25 15 56 51 185 AOE 2 | . . . . . . . . . . . . . . . . . . . . . . . 1 . . . 1 Critical Strikes 42 | . . . . . . 2 . 6 2 4 1 . . . . . . . 2 . . . . 2 5 3 15 Part Disruptions 2 | . . . . . . . . 1 . . . . . . . . . . . . . . . . . . 1 Damage Taken 15911 | . 372 151 . . 216 1006 229 930 276 1667 352 614 . 487 60 124 85 . 626 38 1762 140 261 174 634 1403 4304 Core 2379 | . 33 18 . . 31 126 . 75 14 258 47 56 . 71 . . 33 . 44 . 181 18 12 34 15 198 1115 Absorbed by Shields 1677 | . . . . . . 65 . 413 28 76 . . . 40 . . . . . . . 21 217 184 362 56 215 Reduced by Siege Mode 172 | . . . . . . . . . . . . . . . . . . . . . . . . . . . 172 Ignored by Resistances 160 | . . . . . . . . . . . 5 30 . . . . . . . . . . 20 . 105 . . Regen/Repaired (Parts) 1332 | . 46 . . . . . 159 . . . 213 44 . . 337 . . . . 102 . . 155 162 114 . . Core Remaining (%) 76 | 100 . . . 79 . . . 57 . . . 46 . . . . . . 82 . 81 . . . 93 . . Volleys Fired 1074 | 2 43 14 . . 14 75 42 74 31 72 42 73 1 34 4 23 10 2 35 18 79 23 45 24 86 129 79 Largest 2 | 2 2 2 . . 2 2 2 2 2 2 2 2 1 1 1 1 1 1 1 1 1 1 1 1 1 2 2 Hottest 169 | 40 50 100 . . 50 130 90 90 56 126 132 132 70 70 70 70 70 5 70 70 70 113 113 70 113 113 169 Shots Fired 1442 | 4 86 25 . . 28 133 74 117 57 120 57 83 1 34 4 23 10 2 35 18 78 23 45 24 89 184 88 Gun 523 | 4 85 11 . . 14 111 66 82 53 97 . . . . . . . . . . . . . . . . . Cannon 669 | . 1 11 . . 14 18 . 14 . 6 44 75 1 31 4 21 10 . 22 18 55 22 28 14 83 135 42 Launcher 96 | . . . . . . . 3 10 . 11 . 2 . 2 . 2 . . 13 . 7 . . . . . 46 Special 154 | . . 3 . . . 4 5 11 4 6 13 6 . 1 . . . 2 . . 16 1 17 10 6 49 . Kinetic 874 | 4 86 22 . . 28 18 54 63 53 78 3 59 1 31 4 21 10 . 12 18 50 18 26 14 74 110 17 Thermal 207 | . . 3 . . . 97 . . . 17 10 . . . . . . . 10 . 5 4 2 . 9 25 25 Explosive 96 | . . . . . . . 3 10 . 11 . 2 . 2 . 2 . . 13 . 7 . . . . . 46 Electromagnetic 117 | . . . . . . 17 12 33 . 8 31 16 . . . . . . . . . . . . . . . Robot Hit Streak 23 | 2 13 6 . . 11 9 12 18 16 23 10 20 . 3 . 12 1 1 12 8 15 9 17 6 8 14 13 Robot Miss Streak 9 | 1 4 1 . . 2 5 3 5 2 9 3 3 . 3 . 1 2 1 2 1 2 2 3 2 3 3 2 Penetration Max 1 | . . . . . . . . . 1 1 . . . . . 1 . . . . . . . 1 . 1 . Secondary Targets 6 | . . . . . . 2 1 2 . 1 . . . . . . . . . . . . . . . . . Max Gunslinging Chain 1 | . . . . . . 1 1 1 . 1 . . . . . . . . . . . . . . . . . Shots Hit Robots 939 | 3 61 14 4 . 20 72 47 102 42 96 32 56 . 17 . 19 2 1 20 8 46 11 28 15 49 121 53 Core Hits 615 | 3 23 6 . . 8 30 28 67 11 60 10 20 . 12 . 10 1 . 20 3 25 5 10 4 19 40 200 Critical Kills 28 | . . . . . . . . 1 1 . . . . . . . . . . . . . . . . 23 3 Critical Parts Destroyed 40 | . . . . . . . . . 1 . . . . . . . . . . . . . . . . 36 3 Critical Strikes 103 | . . . . . . 5 . 2 2 1 . 4 . 1 . 3 . . 1 1 4 2 2 3 7 59 6 Burn 4 | . . . . . . 4 . . . . . . . . . . . . . . . . . . . . . Destroy 68 | . . . . . . . . 1 2 . . . . . . . . . . . . . . . . 59 6 Blast 28 | . . . . . . 1 . . . . . 3 . 1 . 3 . . 1 1 4 2 2 3 7 . . Corrupt 1 | . . . . . . . . . . . . 1 . . . . . . . . . . . . . . . Sever 2 | . . . . . . . . 1 . 1 . . . . . . . . . . . . . . . . . Melee Attacks 113 | . . . 4 . . . 2 38 . 46 5 10 . . . 4 . . . . . . . . . 4 . Impact 4 | . . . . . . . . . . . . . . . . 4 . . . . . . . . . . . Slashing 99 | . . . . . . . 2 38 . 46 5 8 . . . . . . . . . . . . . . . Piercing . | . . . . . . . . . . . . . . . . . . . . . . . . . . . . Sneak Attacks 13 | . . . 4 . . . . 3 . 1 1 . . . . . . . . . . . . . . 4 . Combat Hostiles 3 | . . . . . . . . 3 . . . . . . . . . . . . . . . . . . . Follow-up Attacks . | . . . . . . . . . . . . . . . . . . . . . . . . . . . . Damage Inflicted 49460 | 35 633 270 . . 281 1174 1052 3762 633 2725 760 3590 . 1551 . 1668 148 . 1791 634 2927 637 1329 875 3347 2150 17488 Guns 5521 | 35 601 94 . . 113 983 645 1059 633 1358 . . . . . . . . . . . . . . . . . Cannons 20278 | . 17 152 . . 168 185 . 340 . 33 655 3253 . 1200 . 1457 148 . 592 634 2343 637 1329 875 3347 2150 763 Explosions 21396 | . . . . . . . 407 986 . 673 . 260 . 351 . 211 . . 1199 . 584 . . . . . 16725 Melee 2214 | . . . . . . . . 1371 . 661 105 77 . . . . . . . . . . . . . . . Ramming 51 | . 15 24 . . . 6 . 6 . . . . . . . . . . . . . . . . . . . Kinetic 21989 | 35 618 246 . . 281 185 457 981 633 1101 68 2926 . 1200 . 1457 148 . 485 634 2343 515 1329 875 3347 1744 381 Thermal 2149 | . . . . . . 811 . 136 . 185 . . . . . . . . 107 . . 122 . . . 406 382 Explosive 21260 | . . . . . . . 407 850 . 673 . 260 . 351 . 211 . . 1199 . 584 . . . . . 16725 Electromagnetic 1797 | . . . . . . 172 188 418 . 105 587 327 . . . . . . . . . . . . . . . Impact . | . . . . . . . . . . . . . . . . . . . . . . . . . . . . Slashing 2214 | . . . . . . . . 1371 . 661 105 77 . . . . . . . . . . . . . . . Piercing . | . . . . . . . . . . . . . . . . . . . . . . . . . . . . Highest Corruption 23 | . . . . . . . . 2 5 10 10 8 . . . . . . . 1 4 1 1 6 9 11 23 Average Corruption 4 | . . . . . . . . 1 3 7 6 6 . . . . . . . 1 2 1 1 2 8 6 5 Corruption Purged 12 | . . . . . . . . . . . 5 . . . . . . . . . . . . . . 7 . Corruption Blocked . | . . . . . . . . . . . . . . . . . . . . . . . . . . . . Effects 291 | . . . . . . . . 21 5 53 28 47 . . . . . . . . 20 . 11 6 49 37 14 Message Errors 67 | . . . . . . . . 5 2 9 6 7 . . . . . . . . 5 . 4 2 13 12 2 Matter Fused 74 | . . . . . . . . 4 3 14 9 16 . . . . . . . . 1 . 3 2 13 9 . Heat Flow Errors 37 | . . . . . . . . 5 . 5 3 4 . . . . . . . . 6 . 1 . 7 2 4 Energy Discharges 33 | . . . . . . . . 2 . 11 1 7 . . . . . . . . 2 . . . 6 2 2 Parts Rejected 4 | . . . . . . . . . . 1 . . . . . . . . . . . . . . . 2 1 Parts Fused 3 | . . . . . . . . . . . 1 . . . . . . . . . . . 1 . 1 . . Data Loss (minor) 40 | . . . . . . . . 3 . 3 4 8 . . . . . . . . 4 . 1 2 6 7 2 Data Loss (major) 12 | . . . . . . . . 1 . 4 3 1 . . . . . . . . . . 1 . . 1 1 Misfires 14 | . . . . . . . . 1 . 4 1 3 . . . . . . . . . . . . 3 1 1 Alerts 3 | . . . . . . . . . . 1 . 1 . . . . . . . . 1 . . . . . . Misdirections 1 | . . . . . . . . . . . . . . . . . . . . . . . . . . . 1 Weapon Failures 3 | . . . . . . . . . . 1 . . . . . . . . . . 1 . . . . 1 . Overload Shots . | . . . . . . . . . . . . . . . . . . . . . . . . . . . . Overflow Damage 3057 | . . . . . . . 5 51 . 80 28 744 . 104 . 110 32 . 131 156 91 102 31 259 303 98 732 Projectiles 2250 | . . . . . . . . . . . 28 744 . 104 . 110 32 . 112 156 83 102 31 259 303 98 88 Explosions 726 | . . . . . . . 5 8 . 42 . . . . . . . . 19 . 8 . . . . . 644 Melee 81 | . . . . . . . . 43 . 38 . . . . . . . . . . . . . . . . . Knockbacks 84 | . . 1 . . 1 3 . 8 . . 1 17 . 2 . 2 1 . 1 3 2 1 . 2 12 23 4 Impact 1 | . . 1 . . . . . . . . . . . . . . . . . . . . . . . . . Kinetic 79 | . . . . . 1 3 . 7 . . 1 17 . 2 . 2 1 . 1 3 2 1 . 2 12 21 3 Secondary 4 | . . . . . . . . 1 . . . . . . . . . . . . . . . . . 2 1 Self-Inflicted Damage 667 | . . . . . . . . 71 . 144 . . . . . . . . 128 . 77 . . . . . 247 Shots 17 | . . . . . . . . 3 . 5 . . . . . . . . 3 . 2 . . . . . 4 Rammed 11 | . 5 4 . . . . . 2 . . . . . . . . . . . . . . . . . . . Targets Rammed 16 | . 6 4 . . . 4 . 2 . . . . . . . . . . . . . . . . . . . Kicked 4 | . . . . . . 4 . . . . . . . . . . . . . . . . . . . . . Crushed 1 | . 1 . . . . . . . . . . . . . . . . . . . . . . . . . . Highest Temperature 410 | . 21 96 . . 4 273 202 279 . 402 354 410 . 15 36 318 146 . 246 100 238 143 205 9 237 137 199 Average Temperature 80 | . 7 38 . . 4 78 41 95 . 135 111 82 . 11 18 122 63 . 71 41 68 39 45 9 38 58 102 Received Heat Transfer 2738 | . 207 54 . . 108 363 45 295 44 377 63 168 . 138 . 36 . . 180 . 78 . 23 . 69 72 418 Effects 3 | . . . . . . . . . . 1 1 1 . . . . . . . . . . . . . . . Shutdowns 1 | . . . . . . . . . . 1 . . . . . . . . . . . . . . . . . Damage (minor) 2 | . . . . . . . . . . . 1 1 . . . . . . . . . . . . . . . Siege Activations 1 | . . . . . . . . . . . . . . . . . . . . . . . . . . . 1 Total Turns 125 | . . . . . . . . . . . . . . . . . . . . . . . . . . . 125 Longest Duration 125 | . . . . . . . . . . . . . . . . . . . . . . . . . . . 125 Martial Activations . | . . . . . . . . . . . . . . . . . . . . . . . . . . . . Shielding Activations . | . . . . . . . . . . . . . . . . . . . . . . . . . . . . Robots Disrupted 1 | . . . . . . . . . . 1 . . . . . . . . . . . . . . . . . Combat Hostiles 1 | . . . . . . . . . . 1 . . . . . . . . . . . . . . . . . Robots Corrupted 5 | . . . . . . 1 . 2 . . 1 1 . . . . . . . . . . . . . . . Combat Hostiles 5 | . . . . . . 1 . 2 . . 1 1 . . . . . . . . . . . . . . . Parts Fried 6 | . . . . . . . 1 2 . . 2 1 . . . . . . . . . . . . . . . Impact Corruptions . | . . . . . . . . . . . . . . . . . . . . . . . . . . . . Robots Melted . | . . . . . . . . . . . . . . . . . . . . . . . . . . . . Combat Hostiles . | . . . . . . . . . . . . . . . . . . . . . . . . . . . . Parts Melted 4 | . . . . . . 2 . . . 1 . . . . . . . . . . . . . . . 1 . Heat Transferred 3639 | . . . . . . 2220 . 50 . 370 . . . . . . . . 148 . . 111 . . . 370 370 Parts Sabotaged . | . . . . . . . . . . . . . . . . . . . . . . . . . . . . Parts Stolen . | . . . . . . . . . . . . . . . . . . . . . . . . . . . . Parts Stripped . | . . . . . . . . . . . . . . . . . . . . . . . . . . . . Power Chain Reactions 3 | . . . . . . . 1 2 . . . . . . . . . . . . . . . . . . . Alert | -11 -10 -10 -10 -9 -8 -8 -8 -8 -7 -7 -7 -7 -6 -6 -6 -6 -6 -6 -5 -5 -5 -4 -4 -4 -4 -3 -3 ------- Run | Yrd Mat Min Exi Min Mat Gar Mat Gar Fac Gar Fac Gar Fac Gar Fac Low Low Dat Pro Fac Gar Fac Gar Fac Gar Res Tes Maximum Alert Level 5 | . . . . . . 2 1 4 3 3 2 3 2 2 1 . . . . . 2 1 3 2 3 2 5 Low Security (%) 36 | 100 100 100 . 100 100 24 84 8 7 5 54 34 70 15 44 . . . . 100 19 23 31 37 15 37 . Level 1 29 | . . . . . . 40 15 29 70 20 43 18 25 8 55 . . . . . 44 76 23 59 35 42 . Level 2 21 | . . . . . . 35 . 13 5 51 1 25 4 76 . . . . . . 36 . 21 3 40 20 . Level 3 9 | . . . . . . . . 32 16 22 . 21 . . . . . . . . . . 23 . 8 . . Level 4 1 | . . . . . . . . 16 . . . . . . . . . . . . . . . . . . . Level 5 . | . . . . . . . . . . . . . . . . . . . . . . . . . . . . High Security . | . . . . . . . . . . . . . . . . . . . . . . . . . . . . Max Security 1 | . . . . . . . . . . . . . . . . . . . . . . . . . . . 99 Peak Influence 3365 | 10 42 117 . . 66 590 287 1453 762 778 408 775 406 694 364 . . . . 150 641 336 763 400 702 551 3365 Initial 762 | . . . . . . 29 287 48 762 129 408 21 406 105 364 . . . . 150 4 336 109 400 48 394 294 Average 361 | . 8 31 . . 17 334 63 673 327 494 200 390 229 401 224 . . . . 38 375 234 387 231 397 284 2294 Influence Increases 12527 | 10 207 168 . . 86 641 334 1575 170 859 259 914 117 769 25 231 20 . 185 253 857 223 834 165 754 936 1935 Destroy 0b10 Robot/C 6320 | . 140 100 . . 60 360 180 620 100 500 140 400 20 400 . 180 . . 160 20 280 120 340 60 380 420 1340 Destroy 0b10 Robot/NC 325 | 10 20 . . . . 5 35 25 5 5 10 10 5 . . . 5 . 15 10 . 15 . 35 10 70 35 Destroy Leader 714 | . 34 20 . . 10 10 48 50 30 30 42 10 12 10 . 10 . . 10 10 40 20 10 24 60 74 150 Allied During Kill 547 | . . . . . . 1 3 23 3 35 5 66 14 50 . 11 . . . . . 2 166 28 5 113 22 Successful Hack 254 | . 12 . . . . . 12 28 16 7 26 7 32 21 6 . . . . 17 26 14 . . 12 18 . Disable Machine 450 | . . 15 . . . . 30 . 15 . 30 75 30 30 15 . . . . 30 30 15 15 . 15 15 90 Anti-Garrison Action 2350 | . . . . . . 200 . 750 . 150 . 200 . 200 . . . . . . 250 . 250 . 200 150 . Destroy Structure 967 | . 1 3 . . 1 20 26 64 1 72 6 71 4 43 4 . . . . 16 156 22 38 18 57 46 298 Advance Influence 150 | . . . . . . . . . . . . . . . . . . . . 150 . . . . . . . Partial Spotted 15 | . . . . . . . . . . . . . . . . . . . . . . . . . . 15 . Lose Combat Pursuer 435 | . . 30 . . 15 45 . 15 . 60 . 75 . 15 . 30 15 . . . 75 15 15 . 15 15 . Influence Decreases 10588 | 10 207 136 32 . 40 97 849 197 1438 266 1006 170 741 226 616 334 20 . 185 247 222 707 228 859 121 1114 520 Entered New Map 3567 | . . . 32 . . 17 303 27 691 56 370 10 369 46 330 39 . . . . 2 305 48 363 21 308 230 Time Decay 3846 | 10 207 136 . . 40 . 346 . 262 . 446 . 222 . 286 255 20 . 185 247 . 342 . 286 . 556 . Lost Part 600 | . . . . . . 80 10 30 . 110 . 20 . 10 . . . . . . 60 . . . 20 30 230 Lost Ally 1550 | . . . . . . . 40 140 60 100 40 140 . 170 . 40 . . . . 160 60 180 60 80 220 60 Purge Threat 1025 | . . . . . . . 150 . 425 . 150 . 150 . . . . . . . . . . 150 . . . Squads Dispatched 47 | . 2 . . . 1 . 3 . 3 . 5 . 2 . . . . . . 1 . 2 . 2 . 6 20 Investigation 9 | . 2 . . . . . 2 . . . 3 . . . . . . . . . . 1 . . . 1 . Extermination 7 | . . . . . . . . . 1 . 1 . . . . . . . . 1 . 1 . 1 . 2 . Reinforcement 5 | . . . . . . . . . 1 . 1 . 1 . . . . . . . . . . 1 . 1 . Assault 22 | . . . . . . . . . . . . . . . . . . . . . . . . . . 2 20 Garrison 4 | . . . . . 1 . 1 . 1 . . . 1 . . . . . . . . . . . . . . Intercept . | . . . . . . . . . . . . . . . . . . . . . . . . . . . . Searches Triggered . | . . . . . . . . . . . . . . . . . . . . . . . . . . . . Data Miner Redirects 2 | . . . . . . . . . . . . . . . . . . . . . . . . . . 2 . Construction Impeded . | . . . . . . . . . . . . . . . . . . . . . . . . . . . . Haulers Reinforced 1 | . . . . . . . . . . . . . . . . . . . . . . . . . . 1 . Active Scanning Responses . | . . . . . . . . . . . . . . . . . . . . . . . . . . . . Cargo Convoy Interrupts . | . . . . . . . . . . . . . . . . . . . . . . . . . . . . Alert ID Control Effect 53 | . . . . . . . . 2 . 2 4 9 4 4 . . . . . . 1 . 8 2 1 16 . Stealth | -11 -10 -10 -10 -9 -8 -8 -8 -8 -7 -7 -7 -7 -6 -6 -6 -6 -6 -6 -5 -5 -5 -4 -4 -4 -4 -3 -3 --------- Run | Yrd Mat Min Exi Min Mat Gar Mat Gar Fac Gar Fac Gar Fac Gar Fac Low Low Dat Pro Fac Gar Fac Gar Fac Gar Res Tes Distress Signals 17 | . 1 . . . . 1 1 . . . 1 . 2 . . . . . 1 . . . . 2 . 8 . Communications Jammed 147 | . . . . . . . . . . . 9 . . . . . . . . . . 20 . 3 . 115 . Distress Signals 129 | . . . . . . . . . . . 9 . . . . . . . . . . 2 . 3 . 115 . Times Spotted 496 | . 12 7 . . 4 21 15 26 7 30 21 28 3 19 . 14 1 . 11 3 27 11 26 9 19 63 119 Peak Tracking Total 22 | . 3 3 . . 3 5 4 4 2 5 5 4 2 5 . 7 1 . 3 2 7 2 4 3 5 10 22 Tactical Retreats 23 | . . 1 . . 1 2 . 1 . 3 . 3 . 1 . 1 1 . . . 5 1 1 . 1 1 . Traps | -11 -10 -10 -10 -9 -8 -8 -8 -8 -7 -7 -7 -7 -6 -6 -6 -6 -6 -6 -5 -5 -5 -4 -4 -4 -4 -3 -3 ------- Run | Yrd Mat Min Exi Min Mat Gar Mat Gar Fac Gar Fac Gar Fac Gar Fac Low Low Dat Pro Fac Gar Fac Gar Fac Gar Res Tes Traps Triggered 39 | . . . . . . 4 1 4 3 3 . 4 . 3 4 . . . . . 5 . 3 2 2 1 . Indirectly . | . . . . . . . . . . . . . . . . . . . . . . . . . . . . Trap Hack Attempts 45 | . . . . . . . . 18 22 . . 5 . . . . . . . . . . . . . . . Triggered 1 | . . . . . . . . . 1 . . . . . . . . . . . . . . . . . . Disarmed 2 | . . . . . . . . 1 . . . 1 . . . . . . . . . . . . . . . Reprogrammed 1 | . . . . . . . . . 1 . . . . . . . . . . . . . . . . . . Reused . | . . . . . . . . . . . . . . . . . . . . . . . . . . . . Traps Extracted . | . . . . . . . . . . . . . . . . . . . . . . . . . . . . Installed 1 | . . . . . . . . . . . . . . . . . . . 1 . . . . . . . . Triggered . | . . . . . . . . . . . . . . . . . . . . . . . . . . . . Machines | -11 -10 -10 -10 -9 -8 -8 -8 -8 -7 -7 -7 -7 -6 -6 -6 -6 -6 -6 -5 -5 -5 -4 -4 -4 -4 -3 -3 ---------- Run | Yrd Mat Min Exi Min Mat Gar Mat Gar Fac Gar Fac Gar Fac Gar Fac Low Low Dat Pro Fac Gar Fac Gar Fac Gar Res Tes Machines Disabled 51 | . . 1 . . . 2 2 4 1 1 2 7 2 3 1 . . . . 2 6 1 4 . 3 2 7 Max in Single Turn 2 | . . 1 . . . 1 1 1 1 1 1 1 . 1 1 . . . . 1 2 1 1 . 1 1 2 Garrison Access 4 | . . . . . . . . . . . 1 . . . . . . . . . . . . 1 . 2 . Garrison Relay 17 | . . . . . . 2 . 4 . 1 . 2 . 1 . . . . . . 3 . 2 . 2 . . Machines Repaired . | . . . . . . . . . . . . . . . . . . . . . . . . . . . . Machines Dismantled . | . . . . . . . . . . . . . . . . . . . . . . . . . . . . Machines Sabotaged . | . . . . . . . . . . . . . . . . . . . . . . . . . . . . Overloaded Fab Kills . | . . . . . . . . . . . . . . . . . . . . . . . . . . . . Hacking | -11 -10 -10 -10 -9 -8 -8 -8 -8 -7 -7 -7 -7 -6 -6 -6 -6 -6 -6 -5 -5 -5 -4 -4 -4 -4 -3 -3 --------- Run | Yrd Mat Min Exi Min Mat Gar Mat Gar Fac Gar Fac Gar Fac Gar Fac Low Low Dat Pro Fac Gar Fac Gar Fac Gar Res Tes Machines Accessed 82 | . 6 . 2 . 2 1 6 4 3 3 10 3 7 4 2 . . 3 . 8 2 3 1 4 1 7 . Terminals 44 | . 5 . . . . 1 4 4 1 3 2 3 4 4 1 . . . . 4 2 1 1 1 1 2 . Fabricators 8 | . . . . . . . . . 1 . 2 . 1 . . . . . . 1 . 1 . . . 2 . Repair Stations 9 | . 1 . . . . . 1 . . . 3 . . . 1 . . . . 1 . . . 1 . 1 . Recycling Units 5 | . . . . . 1 . . . . . 1 . 1 . . . . . . 1 . . . . . 1 . Scanalyzers . | . . . . . . . . . . . . . . . . . . . . . . . . . . . . Garrison Access 11 | . . . . . 1 . 1 . 1 . 2 . 1 . . . . . . 1 . 1 . 2 . 1 . Total Hacks 212 | . 17 . 2 . 7 2 16 11 8 4 22 6 15 10 6 . . 27 . 15 6 11 2 9 3 13 . Successful 112 | . 6 . 2 . 2 1 9 3 3 1 13 2 9 2 4 . . 27 . 6 2 8 . 6 1 5 . Failed 100 | . 11 . . . 5 1 7 8 5 3 9 4 6 8 2 . . . . 9 4 3 2 3 2 8 . Catastrophic 24 | . 3 . . . 1 1 1 3 . 1 2 . 2 2 . . . . . 3 1 1 1 1 . 1 . Database Lockouts . | . . . . . . . . . . . . . . . . . . . . . . . . . . . . Manual 76 | . 13 . 1 . 5 1 7 2 1 . 12 . 11 . . . . . . 6 2 4 . 3 2 6 . Terminals 103 | . 13 . . . . 2 10 11 4 4 6 6 8 10 2 . . . . 7 6 4 2 2 3 3 . Fabricators 21 | . . . . . . . . . 2 . 4 . 4 . . . . . . 2 . 5 . . . 4 . Repair Stations 25 | . 4 . . . . . 4 . . . 7 . . . 4 . . . . 2 . . . 2 . 2 . Recycling Units 9 | . . . . . 1 . . . . . 2 . 1 . . . . . . 3 . . . . . 2 . Scanalyzers . | . . . . . . . . . . . . . . . . . . . . . . . . . . . . Garrison Access 25 | . . . . . 6 . 2 . 2 . 3 . 2 . . . . . . 1 . 2 . 5 . 2 . Terminal Hacks 53 | . 4 . 2 . . 1 3 2 1 1 1 2 1 2 . . . 27 . 1 2 1 . 1 1 . . Record 7 | . . . 1 . . . . . . . . . . . . . . 6 . . . . . . . . . Part Schematic 10 | . . . . . . . . . . . . . . . . . . 10 . . . . . . . . . Robot Schematic 9 | . . . . . . . . . . . . . . . . . . 8 . 1 . . . . . . . Robot Analysis 4 | . 3 . . . . . 1 . . . . . . . . . . . . . . . . . . . . Prototype ID Bank 3 | . . . . . . . . . . . . . . . . . . 3 . . . . . . . . . Open Door 3 | . . . . . . . . . . 1 . 1 . 1 . . . . . . . . . . . . . Emergency Access Points 4 | . . . . . . 1 . 1 . . . 1 . . . . . . . . . . . . 1 . . Unreport Threat 4 | . . . . . . . 1 . 1 . . . 1 . . . . . . . . . . 1 . . . Locate Traps 1 | . 1 . . . . . . . . . . . . . . . . . . . . . . . . . . Registered Components 1 | . . . . . . . . . . . . . . . . . . . . . . 1 . . . . . Zone Layout 2 | . . . . . . . 1 . . . 1 . . . . . . . . . . . . . . . . Patrol Navigation 3 | . . . . . . . . 1 . . . . . 1 . . . . . . 1 . . . . . . Security Stations 1 | . . . . . . . . . . . . . . . . . . . . . 1 . . . . . . Proto ID Catalog 1 | . . . 1 . . . . . . . . . . . . . . . . . . . . . . . . Fabricator Hacks 7 | . . . . . . . . . 1 . 1 . 1 . . . . . . . . 4 . . . . . Network Status 2 | . . . . . . . . . . . 1 . 1 . . . . . . . . . . . . . . Load Schematic 2 | . . . . . . . . . . . . . . . . . . . . . . 2 . . . . . Build 3 | . . . . . . . . . 1 . . . . . . . . . . . . 2 . . . . . Repair Station Hacks 13 | . 1 . . . . . 2 . . . 1 . . . 4 . . . . 2 . . . 2 . 1 . Scan Component 7 | . . . . . . . 1 . . . 1 . . . 2 . . . . 1 . . . 1 . 1 . Repair 5 | . . . . . . . 1 . . . . . . . 2 . . . . 1 . . . 1 . . . Refit 1 | . 1 . . . . . . . . . . . . . . . . . . . . . . . . . . Recycling Unit Hacks 3 | . . . . . 1 . . . . . 1 . . . . . . . . 1 . . . . . . . Report Inventory 1 | . . . . . . . . . . . 1 . . . . . . . . . . . . . . . . Retrieve Components 2 | . . . . . 1 . . . . . . . . . . . . . . 1 . . . . . . . Scanalyzer . | . . . . . . . . . . . . . . . . . . . . . . . . . . . . Garrison Access Hacks 13 | . . . . . 1 . 1 . 1 . 2 . 1 . . . . . . 1 . 1 . 3 . 2 . Unlock Access 9 | . . . . . 1 . 1 . 1 . 1 . 1 . . . . . . 1 . 1 . 2 . . . Seal Access 3 | . . . . . . . . . . . 1 . . . . . . . . . . . . 1 . 1 . Coupler Status 1 | . . . . . . . . . . . . . . . . . . . . . . . . . . 1 . Unauthorized Hacks 23 | . 1 . . . . . 3 1 . . 7 . 6 . . . . . . 1 . 2 . . . 2 . Terminals 9 | . . . . . . . 2 1 . . 2 . 3 . . . . . . . . 1 . . . . . Track 1 | . . . . . . . . . . . . . 1 . . . . . . . . . . . . . . Assimilate 1 | . . . . . . . 1 . . . . . . . . . . . . . . . . . . . . Botnet 5 | . . . . . . . 1 1 . . 1 . 1 . . . . . . . . 1 . . . . . Disrupt 1 | . . . . . . . . . . . . . 1 . . . . . . . . . . . . . . Operators 1 | . . . . . . . . . . . 1 . . . . . . . . . . . . . . . . Fabricators 4 | . . . . . . . . . . . . . 3 . . . . . . . . . . . . 1 . Prioritize 1 | . . . . . . . . . . . . . 1 . . . . . . . . . . . . . . Liberate 2 | . . . . . . . . . . . . . 1 . . . . . . . . . . . . 1 . Haulers 1 | . . . . . . . . . . . . . 1 . . . . . . . . . . . . . . Repair Stations 4 | . 1 . . . . . . . . . 3 . . . . . . . . . . . . . . . . Mechanics 1 | . . . . . . . . . . . 1 . . . . . . . . . . . . . . . . Patch 3 | . 1 . . . . . . . . . 2 . . . . . . . . . . . . . . . . Recycling Units 3 | . . . . . . . . . . . 1 . . . . . . . . 1 . . . . . 1 . Reject 3 | . . . . . . . . . . . 1 . . . . . . . . 1 . . . . . 1 . Scanalyzers . | . . . . . . . . . . . . . . . . . . . . . . . . . . . . Garrison Access 3 | . . . . . . . 1 . . . 1 . . . . . . . . . . 1 . . . . . Reprogram 3 | . . . . . . . 1 . . . 1 . . . . . . . . . . 1 . . . . . Data Cores Recovered . | . . . . . . . . . . . . . . . . . . . . . . . . . . . . Used . | . . . . . . . . . . . . . . . . . . . . . . . . . . . . Hacking Detections 68 | . 6 . . . 1 1 5 4 3 2 7 2 7 4 2 . . . . 7 2 3 1 3 1 7 . Full Trace Events 8 | . 2 . . . . . . 1 . . 1 . . 1 . . . . . . . 1 1 . . 1 . Feedback Events . | . . . . . . . . . . . . . . . . . . . . . . . . . . . . Feedback Blocked . | . . . . . . . . . . . . . . . . . . . . . . . . . . . . Robot Schematics Acquired 9 | . . . . . . . . . . . . . . . . . . 8 . 1 . . . . . . . Robots Built 6 | . . . . . . . . . 3 . . . . . . . . . . . . 3 . . . . . Authchips 2 | . . . . . . . . . . . . . . . . . . . . . . 2 . . . . . Time 334 | . . . . . . . . . 49 . . . . . . . . . . . . 285 . . . . . Total Robot Build Rating 21 | . . . . . . . . . 6 . . . . . . . . . . . . 15 . . . . . Part Schematics Acquired 10 | . . . . . . . . . . . . . . . . . . 10 . . . . . . . . . Parts Built . | . . . . . . . . . . . . . . . . . . . . . . . . . . . . Authchips . | . . . . . . . . . . . . . . . . . . . . . . . . . . . . Time . | . . . . . . . . . . . . . . . . . . . . . . . . . . . . Total Part Build Rating . | . . . . . . . . . . . . . . . . . . . . . . . . . . . . Parts Repaired 5 | . . . . . . . 1 . . . . . . . 2 . . . . 1 . . . 1 . . . Time 238 | . . . . . . . 32 . . . . . . . 88 . . . . 68 . . . 50 . . . Parts Recycled . | . . . . . . . . . . . . . . . . . . . . . . . . . . . . Recycled Matter . | . . . . . . . . . . . . . . . . . . . . . . . . . . . . Retrieved Matter . | . . . . . . . . . . . . . . . . . . . . . . . . . . . . Retrieved Components 7 | . . . . . 2 . . . . . . . . . . . . . . 5 . . . . . . . Parts Scanalyzed . | . . . . . . . . . . . . . . . . . . . . . . . . . . . . Part Schematics Acquired . | . . . . . . . . . . . . . . . . . . . . . . . . . . . . Parts Damaged . | . . . . . . . . . . . . . . . . . . . . . . . . . . . . Bothacking | -11 -10 -10 -10 -9 -8 -8 -8 -8 -7 -7 -7 -7 -6 -6 -6 -6 -6 -6 -5 -5 -5 -4 -4 -4 -4 -3 -3 ------------ Run | Yrd Mat Min Exi Min Mat Gar Mat Gar Fac Gar Fac Gar Fac Gar Fac Low Low Dat Pro Fac Gar Fac Gar Fac Gar Res Tes Used RIF Installer 8 | . . . . . . 1 . 1 . 1 . 1 . 1 . . . . . . 1 . 1 . 1 . . Coupler Efficiency 1 | . . . . . . . . . . . . 1 . . . . . . . . . . . . . . . Hotswap 1 | . . . . . . . . . . 1 . . . . . . . . . . . . . . . . . Zone Cloak 2 | . . . . . . . . . . . . . . 1 . . . . . . . . 1 . . . . Patrol Navigation 1 | . . . . . . . . . . . . . . . . . . . . . 1 . . . . . . Alert ID Control 1 | . . . . . . . . 1 . . . . . . . . . . . . . . . . . . . Structural Interface 1 | . . . . . . . . . . . . . . . . . . . . . . . . . 1 . . Robots Hacked 98 | . . . 4 . . 1 4 4 2 4 8 6 . 1 . . . 1 . . 9 1 12 4 4 33 . Non-combat 24 | . . . 3 . . . . . 2 . 3 . . . . . . . . . . . . . . 16 . Combat 74 | . . . 1 . . 1 4 4 . 4 5 6 . 1 . . . 1 . . 9 1 12 4 4 17 . Robot Hacks Applied 108 | . . . 4 . . 1 4 4 3 4 9 7 . 1 . . . 1 . . 11 1 12 4 4 38 . parse_system 5 | . . . 4 . . . . . . . . . . . . . . 1 . . . . . . . . . ignore_repairs 4 | . . . . . . . . . . . . . . . . . . . . . . . . . . 4 . drop_inventory 4 | . . . . . . . . . . . . . . . . . . . . . . . . . . 4 . purge_threat 3 | . . . . . . . . . 2 . 1 . . . . . . . . . . . . . . . . block_reporting 1 | . . . . . . . . . . . . . . . . . . . . . . . . . . 1 . summon_haulers 1 | . . . . . . . . . . . . . . . . . . . . . . . . . . 1 . map_route 2 | . . . . . . . . . . . . . . . . . . . . . . . . . . 2 . mark_security 1 | . . . . . . . . . . . . . . . . . . . . . . . . . . 1 . redirect_shields 1 | . . . . . . . . . . . . . . . . . . . . . . . . . . 1 . link_fov 1 | . . . . . . . . . . . . . . . . . . . . . . . . . . 1 . scatter_targeting 1 | . . . . . . . 1 . . . . . . . . . . . . . . . . . . . . disrupt_area 1 | . . . . . . . . . . . . . . . . . . . . . . . . . . 1 . overload_power 4 | . . . . . . . . . . . . . . . . . . . . . . . 1 . 1 2 . amplify_resonance 3 | . . . . . . . . . . . . 1 . . . . . . . . . . 1 . . 1 . wipe_record 1 | . . . . . . . . . . . . . . . . . . . . . . 1 . . . . . disable_weapons 1 | . . . . . . . . . . . . . . . . . . . . . . . 1 . . . . reboot_system 2 | . . . . . . . . 1 . . . . . . . . . . . . . . . . . 1 . overwrite_iff 25 | . . . . . . 1 . . . 2 . 3 . 1 . . . . . . 5 . 4 . 2 7 . streamctrl_low 2 | . . . . . . . . . 1 . 1 . . . . . . . . . . . . . . . . streamctrl_high 4 | . . . . . . . 1 . . 2 . . . . . . . . . . 1 . . . . . . formatsys_low 5 | . . . . . . . . . . . 2 . . . . . . . . . . . . . . 3 . formatsys_high 35 | . . . . . . . 2 2 . . 5 3 . . . . . . . . 5 . 5 4 1 8 . formatsys_deep 1 | . . . . . . . . 1 . . . . . . . . . . . . . . . . . . . Relay Couplers Released 85 | . . . . . . 7 . 17 . 5 . 13 . 3 . . . . . . 13 . 7 6 7 7 . Machine Destruction 74 | . . . . . . 7 . 17 . 5 . 9 . 3 . . . . . . 13 . 7 3 7 3 . Programmers 11 | . . . . . . . . . . . . 4 . . . . . . . . . . . 3 . 4 . Attached 39 | . . . . . . 1 1 4 1 2 3 5 . 1 . . . . . . 5 . 3 4 1 8 . Fabnet Peak Effective % . | . . . . . . . . . . . . . . . . . . . . . . . . . . . . Robots Rewired 9 | . . . . . . . . . . . . . . 3 . 2 . . . . . . 4 . . . . Allies Hacked 10 | . . . . . . . . . . . . 7 . . . . . . . . . 1 . . . 2 . Hacks Repelled . | . . . . . . . . . . . . . . . . . . . . . . . . . . . . Allies | -11 -10 -10 -10 -9 -8 -8 -8 -8 -7 -7 -7 -7 -6 -6 -6 -6 -6 -6 -5 -5 -5 -4 -4 -4 -4 -3 -3 -------- Run | Yrd Mat Min Exi Min Mat Gar Mat Gar Fac Gar Fac Gar Fac Gar Fac Low Low Dat Pro Fac Gar Fac Gar Fac Gar Res Tes Total Allies 105 | . . . . . . 1 5 7 4 6 8 9 3 6 . 2 . . . . 9 3 13 4 3 22 . Largest Group 9 | . . . . . . 1 2 3 3 2 6 6 8 5 1 2 1 . . . 1 2 9 5 2 8 3 Highest-Rated Group 431 | . . . . . . 21 29 61 54 78 135 277 334 244 46 49 20 . . . 49 92 376 226 74 431 184 Highest-Rated Ally 142 | . . . . . . 21 29 27 18 39 32 95 95 95 46 46 20 . . . 49 49 85 85 51 142 64 Total Orders 102 | . . . . . . . 1 7 . . 11 15 . 4 . 2 . . . . 2 . 38 7 6 8 1 STAY 51 | . . . . . . . 1 4 . . 4 9 . 3 . 1 . . . . 1 . 16 4 3 4 1 ROAM 1 | . . . . . . . . . . . . . . . . . . . . . . . 1 . . . . FOLLOW 33 | . . . . . . . . 3 . . 5 4 . 1 . 1 . . . . 1 . 14 1 2 1 . AID 17 | . . . . . . . . . . . 2 2 . . . . . . . . . . 7 2 1 3 . Ally Attacks 546 | . . . . . . 3 14 19 10 77 13 64 27 42 . 6 . . . . 20 17 72 30 15 114 3 Total Damage 14767 | . . . . . . 50 247 380 263 830 326 1603 862 1339 . 157 . . . . 423 383 2580 897 482 3869 76 Kills 96 | . . . . . . 1 . 2 . 9 4 13 6 13 . . . . . . 1 2 16 6 2 21 . Allies Corrupted 3 | . . . . . . . . . . . . 1 . . . . . . . . . . . 1 1 . . Allies Melted 1 | . . . . . . . . . . . . . . . . . . . . . . . 1 . . . . Intel | -11 -10 -10 -10 -9 -8 -8 -8 -8 -7 -7 -7 -7 -6 -6 -6 -6 -6 -6 -5 -5 -5 -4 -4 -4 -4 -3 -3 ------- Run | Yrd Mat Min Exi Min Mat Gar Mat Gar Fac Gar Fac Gar Fac Gar Fac Low Low Dat Pro Fac Gar Fac Gar Fac Gar Res Tes Active Infowar (turns) 22614 | . . . . . 169 1572 1126 1074 561 1558 1119 1700 468 1203 636 1428 587 143 968 816 1789 610 958 624 1534 1568 403 Optics 12246 | . . . . . . . . . 561 1558 1119 1700 468 1203 636 1428 587 143 968 816 439 . . . . 217 403 Sensors 2944 | . . . . . . . . . . . . . . . . 1271 587 143 943 . . . . . . . . Traps 1266 | . . . . . . . . . . . . . 2 . 270 2 . . 1 802 189 . . . . . . Seismic 3003 | . . . . . 169 1572 1126 136 . . . . . . . . . . . . . . . . . . . Machine Analysis 4061 | . . . . . . . . 938 561 1558 1004 . . . . . . . . . . . . . . . . Spoofing 1 | . . . . . . . . . . . . . . 1 . . . . . . . . . . . . . Jamming 8188 | . . . . . . . . . . . 490 807 . . . . . . . . 1545 610 958 624 1534 1485 135 Robot Analysis Total 4 | . 3 . . . . . 1 . . . . . . . . . . . . . . . . . . . . Derelict Logs Recovered 5 | . . 1 . . . . . . . . . . . . . 1 1 . 2 . . . . . . . . Drone Launches . | . . . . . . . . . . . . . . . . . . . . . . . . . . . . Drone Recoveries . | . . . . . . . . . . . . . . . . . . . . . . . . . . . . Exploration | -11 -10 -10 -10 -9 -8 -8 -8 -8 -7 -7 -7 -7 -6 -6 -6 -6 -6 -6 -5 -5 -5 -4 -4 -4 -4 -3 -3 ------------- Run | Yrd Mat Min Exi Min Mat Gar Mat Gar Fac Gar Fac Gar Fac Gar Fac Low Low Dat Pro Fac Gar Fac Gar Fac Gar Res Tes Turns Passed 27512 | 97 964 797 587 43 169 1572 1126 2503 561 1558 1119 1700 468 1203 636 1428 587 143 968 816 1789 762 1724 624 1534 1627 407 Spaces Moved 12547 | 48 485 455 359 23 62 535 428 1130 250 703 543 761 253 602 344 735 274 82 453 415 855 314 760 284 637 664 93 Core 9 | 3 . . . . . . . . . . . . . . . . . . . . . . . . . . 6 Treads 1709 | 45 485 455 359 23 62 227 . 17 . . . 27 . . . . . . . . . . . . . . 9 Legs 180 | . . . . . . 179 . . . . . . . . . . . . . 1 . . . . . . . Wheels 10649 | . . . . . . 129 428 1113 250 703 543 734 253 602 344 735 274 82 453 414 855 314 760 284 637 664 78 Hover . | . . . . . . . . . . . . . . . . . . . . . . . . . . . . Flight . | . . . . . . . . . . . . . . . . . . . . . . . . . . . . Fastest Speed 50 | 50 160 160 160 160 160 140 155 145 150 150 145 145 160 160 160 150 180 165 150 150 145 160 160 160 160 160 50 Average Speed 168 | 153 160 160 160 160 160 204 170 169 150 150 149 159 173 170 168 178 180 166 171 172 165 174 173 174 174 167 180 Slowest Speed 610 | 160 160 160 160 160 160 400 230 560 150 150 150 320 175 175 175 180 180 180 180 610 175 175 175 175 175 175 320 Overloaded Moves . | . . . . . . . . . . . . . . . . . . . . . . . . . . . . Propulsion Burnouts . | . . . . . . . . . . . . . . . . . . . . . . . . . . . . Robots Hopped . | . . . . . . . . . . . . . . . . . . . . . . . . . . . . Potential Cave-ins 3 | . . . . . . . . . . . . . . . . . . . . . 3 . . . . . . Cave-ins Triggered . | . . . . . . . . . . . . . . . . . . . . . . . . . . . . Exploration Rate (%) 42 | 3 57 98 70 9 5 59 30 80 9 69 15 80 10 74 8 83 49 76 57 16 73 6 61 9 52 18 16 Regions Visited 27 Branch Regions 8 Pre-discovered Areas 3 | . . 1 1 . . . . . . . . . . . . . . 1 . . . . . . . . . Known Exits Taken 14 | . . . . . 1 . 1 . 1 . 1 . 1 . 1 1 1 1 1 1 . 1 . 1 . 1 . Unknown Exits Taken 5 | 1 1 1 1 1 . . . . . . . . . . . . . . . . . . . . . . . Scrap Searched 8 | . . 1 . . . . . . . . . . . . . 3 . . 4 . . . . . . . . Spaces Dug 223 | . . 3 . . . . 2 19 . 22 6 1 1 5 4 23 5 . 49 8 35 8 3 3 5 10 11 Terrain Destroyed 877 | . . 3 . . . . 25 37 . 78 6 40 1 23 4 44 8 . 129 8 89 12 7 4 30 13 316 Melee 26 | . . . . . . . 2 4 . 12 3 1 . . . 4 . . . . . . . . . . . Projectile 174 | . . 3 . . . . . . . 6 3 16 1 12 4 3 8 . 12 8 20 12 7 4 30 13 12 AOE 677 | . . . . . . . 23 33 . 60 . 23 . 11 . 37 . . 117 . 69 . . . . . 304 Terrain Rammed . | . . . . . . . . . . . . . . . . . . . . . . . . . . . . Walls Destroyed . | . . . . . . . . . . . . . . . . . . . . . . . . . . . . Machines Disabled . | . . . . . . . . . . . . . . . . . . . . . . . . . . . . Actions | -11 -10 -10 -10 -9 -8 -8 -8 -8 -7 -7 -7 -7 -6 -6 -6 -6 -6 -6 -5 -5 -5 -4 -4 -4 -4 -3 -3 --------- Run | Yrd Mat Min Exi Min Mat Gar Mat Gar Fac Gar Fac Gar Fac Gar Fac Low Low Dat Pro Fac Gar Fac Gar Fac Gar Res Tes Total 17460 | 65 597 490 371 29 103 863 761 1526 379 1006 784 1134 279 731 396 812 353 88 610 495 1174 513 1148 393 987 1093 280 Wait 2436 | 3 40 14 . 7 18 189 228 145 54 92 146 167 23 46 24 10 70 . 88 20 141 150 253 57 215 186 50 Move 12522 | 47 484 454 358 22 61 534 427 1129 249 702 542 760 253 601 343 734 273 81 452 415 854 313 759 283 636 663 93 Hop . | . . . . . . . . . . . . . . . . . . . . . . . . . . . . Pick Up 205 | 7 9 1 2 . 1 21 13 15 4 20 9 15 . 2 5 1 . 1 12 5 15 5 10 4 7 17 4 Fast Attach 136 | 6 2 . . . 5 7 9 5 2 2 4 13 2 8 3 4 . . . 14 10 4 6 5 8 16 1 Attach 126 | . . . . . 1 4 3 2 2 11 2 10 . 2 6 3 . 2 7 3 19 8 6 4 7 8 16 Detach 84 | . . . . . . 1 3 2 1 . 2 12 . 3 5 4 . . 1 2 13 4 4 5 6 10 6 Swap 256 | . 3 2 4 . 1 14 17 54 11 40 20 11 . 2 2 3 . 1 2 1 11 1 4 4 5 35 8 Drop 222 | . 10 1 3 . 2 6 17 16 3 13 9 27 . 8 4 4 . 1 12 17 15 5 14 7 9 15 4 Fire 1074 | 2 43 14 . . 14 75 42 74 31 72 42 73 1 34 4 23 10 2 35 18 79 23 45 24 86 129 79 Melee 113 | . . . 4 . . . 2 38 . 46 5 10 . . . 4 . . . . . . . . . 4 . Ram . | . . . . . . . . . . . . . . . . . . . . . . . . . . . . Kick 4 | . . . . . . 4 . . . . . . . . . . . . . . . . . . . . . Crush 12 | . 6 4 . . . . . 2 . . . . . . . . . . . . . . . . . . . Escape Stasis 145 | . . . . . . 8 . 26 . 8 . 24 . 12 . . . . . . 16 . 16 . 8 8 19 Rewire 79 | . . . . . . . . . . . 3 7 . 13 . 22 . . . . 1 . 31 . . 2 . Trap 46 | . . . . . . . . 18 22 . . 5 . . . . . . 1 . . . . . . . . Miscellaneous . | . . . . . . . . . . . . . . . . . . . . . . . . . . . . Route ------- -11/Scrapyard -10/Materials (discovered 2 exits: [*Mat] / [*Min]) -10/Mines (discovered 3 exits: [*Mat x2] / *Exi) -10/Exiles (discovered 2 exits: [*Min x2]) -9/Mines -8/Materials -8/Garrison (discovered 2 exits: *Mat x2) -8/Materials (discovered 2 exits: *Fac / Gar) -8/Garrison (discovered 3 exits: *Fac x3) -7/Factory -7/Garrison (discovered 3 exits: *Fac x3) -7/Factory -7/Garrison (discovered 3 exits: *Fac x3) -6/Factory (discovered 2 exits: *Low / Gar) -6/Garrison (discovered 3 exits: *Fac x3) -6/Factory -6/Lower Caves -6/Lower Caves (discovered 2 exits: Fac / *Dat) -6/Data Miner -5/Proximity Caves -5/Factory -5/Garrison (discovered 3 exits: *Fac x3) -4/Factory -4/Garrison (discovered 2 exits: *Fac x2) -4/Factory -4/Garrison -3/Research -3/Testing History --------- Turn | Location | Event 2 | -11/Scrapyard | Met Revision 17 46 | -11/Scrapyard | Discovered new exit (range 14) 98 | -11/Scrapyard | Entered Materials 305 | -10/Materials | Build established: Mutant 610 | -10/Materials | Discovered new exit (range 13) 844 | -10/Materials | Discovered new exit (range 7) 1062 | -10/Materials | Entered Mines 1074 | -10/Mines | Met a Derelict bent on vengeance 1142 | -10/Mines | Discovered new exit (range 16) 1230 | -10/Mines | Discovered new exit (range 4) 1250 | -10/Mines | Deemed a non-threat by the Exiles lab entrance 1250 | -10/Mines | Discovered new exit (range 5) 1438 | -10/Mines | Found a damaged Exp. Sensor Array with a note attached 1442 | -10/Mines | Found Prototype Device 1859 | -10/Mines | Entered Exiles 1880 | -10/Exiles | Discovered new exit (range 15) 1899 | -10/Exiles | Met 8R-AWN 1928 | -10/Exiles | Met EX-HEX 2006 | -10/Exiles | Met EX-DEC 2053 | -10/Exiles | Learned location of Zion (-7) 2215 | -10/Exiles | Met EX-BIN 2240 | -10/Exiles | Aligned with FarCom system 2242 | -10/Exiles | Given EX-Vault access code 2280 | -10/Exiles | Opened EX-Vault 2292 | -10/Exiles | Found Modified TNC 2326 | -10/Exiles | Warned to stay clear of 0b10 Research branches 2425 | -10/Exiles | Discovered new exit (range 14) 2446 | -10/Exiles | Left Exiles lab with Modified TNC 2446 | -10/Exiles | Entered Mines 2447 | -9/Mines | Assembled infested the area 2474 | -9/Mines | Discovered new exit (range 7) 2489 | -9/Mines | Entered Materials 2489 | -8/Materials | Evolved 4 slots: Utility x4 2610 | -8/Materials | Garrison activated, responded to threat 2653 | -8/Materials | Identified exit to Garrison 2658 | -8/Materials | Entered Garrison 2681 | -8/Garrison | Triggered checkpoint 2751 | -8/Garrison | Garrison Relay disabled 2808 | -8/Garrison | Triggered checkpoint 2945 | -8/Garrison | Build established: Scavenger-Mutant 3236 | -8/Garrison | Triggered checkpoint 3290 | -8/Garrison | Lost 3 parts (1n1u1w) 3422 | -8/Garrison | Installed Relay Interface Framework 3435 | -8/Garrison | Discovered new exit (range 14) 3515 | -8/Garrison | Triggered checkpoint 3678 | -8/Garrison | Garrison Relay disabled 3762 | -8/Garrison | Triggered checkpoint 3796 | -8/Garrison | Triggered checkpoint 4018 | -8/Garrison | Discovered new exit (range 3) 4230 | -8/Garrison | Entered Materials 5094 | -8/Materials | Repaired Hrd. Light Armor Plating 5209 | -8/Materials | Discovered new exit (range 9) 5292 | -8/Materials | Identified exit to Garrison 5356 | -8/Materials | Entered Garrison 5356 | -8/Garrison | Accompanied by 2 allies 5440 | -8/Garrison | Build established: Mutant 5454 | -8/Garrison | Garrison Relay disabled 5484 | -8/Garrison | Expanded RIF knowledge: Alert ID Control 5551 | -8/Garrison | Triggered checkpoint 5697 | -8/Garrison | Garrison Relay disabled 6001 | -8/Garrison | Build established: Bothacker-Mutant 6268 | -8/Garrison | Triggered checkpoint 6334 | -8/Garrison | Triggered checkpoint 6492 | -8/Garrison | Triggered checkpoint 6493 | -8/Garrison | Assimilated ARC 3a with formatsys_deep 6528 | -8/Garrison | Triggered checkpoint 6713 | -8/Garrison | Lost 5 allies 6846 | -8/Garrison | Discovered new exit (range 10) 6858 | -8/Garrison | Triggered checkpoint 6918 | -8/Garrison | Garrison Relay disabled 7052 | -8/Garrison | Triggered checkpoint 7195 | -8/Garrison | Discovered new exit (range 13) 7425 | -8/Garrison | Discovered new exit (range 10) 7470 | -8/Garrison | Triggered checkpoint 7499 | -8/Garrison | Garrison Relay disabled 7859 | -8/Garrison | Entered Factory 7859 | -7/Factory | Accompanied by 1 ally 7859 | -7/Factory | Evolved 2 slots: Utility x2 8318 | -7/Factory | Fabricated L-31 Rogue (x3) 8323 | -7/Factory | Garrison activated, responded to threat 8391 | -7/Factory | Lost 3 allies 8416 | -7/Factory | Identified exit to Garrison 8420 | -7/Factory | Entered Garrison 8478 | -7/Garrison | Triggered checkpoint 8493 | -7/Garrison | Rescued a captive Derelict 8494 | -7/Garrison | Rescued a captive Derelict 8594 | -7/Garrison | Garrison Relay disabled 8682 | -7/Garrison | Triggered checkpoint 8759 | -7/Garrison | Triggered checkpoint 8844 | -7/Garrison | Discovered new exit (range 11) 8890 | -7/Garrison | Triggered checkpoint 8983 | -7/Garrison | Build established: Bothacker-Skirmisher 9048 | -7/Garrison | Triggered checkpoint 9235 | -7/Garrison | Lost 3 parts (2u1w) 9342 | -7/Garrison | System corruption reached 10% 9414 | -7/Garrison | Expanded RIF knowledge: Hotswap 9490 | -7/Garrison | Discovered new exit (range 8) 9502 | -7/Garrison | Triggered checkpoint 9763 | -7/Garrison | Lost 3 parts (1p1u1w) 9773 | -7/Garrison | Discovered new exit (range 11) 9804 | -7/Garrison | Triggered checkpoint 9978 | -7/Garrison | Entered Factory 11015 | -7/Factory | Identified exit to Garrison 11097 | -7/Factory | Entered Garrison 11097 | -7/Garrison | Accompanied by 5 allies 11111 | -7/Garrison | Triggered checkpoint 11265 | -7/Garrison | Rescued a captive Derelict 11266 | -7/Garrison | Rescued a captive Derelict 11319 | -7/Garrison | Build established: Bothacker-Mutant 11487 | -7/Garrison | Garrison Relay disabled 11618 | -7/Garrison | Triggered checkpoint 11649 | -7/Garrison | Triggered checkpoint 11683 | -7/Garrison | Lost 3 allies 11721 | -7/Garrison | Core integrity fell below 50% 11909 | -7/Garrison | Triggered checkpoint 11963 | -7/Garrison | Discovered new exit (range 13) 11983 | -7/Garrison | Triggered checkpoint 12146 | -7/Garrison | Garrison Relay disabled 12212 | -7/Garrison | Found embedded Infiltrators 12288 | -7/Garrison | Triggered checkpoint 12362 | -7/Garrison | Discovered new exit (range 9) 12459 | -7/Garrison | Triggered checkpoint 12655 | -7/Garrison | Expanded RIF knowledge: Coupler Efficiency 12710 | -7/Garrison | Discovered new exit (range 13) 12797 | -7/Garrison | Entered Factory 12797 | -6/Factory | Accompanied by 5 allies 12797 | -6/Factory | Evolved 2 slots: Utility x2 13054 | -6/Factory | Discovered new exit (range 14) 13112 | -6/Factory | Build established: Botlord-Skirmisher 13223 | -6/Factory | Garrison activated, responded to threat 13265 | -6/Factory | Identified exit to Garrison 13265 | -6/Factory | Entered Garrison 13265 | -6/Garrison | Accompanied by 5 allies 13367 | -6/Garrison | Triggered checkpoint 13400 | -6/Garrison | Expanded RIF knowledge: Zone Cloak 13439 | -6/Garrison | Triggered checkpoint 13509 | -6/Garrison | Triggered checkpoint 13511 | -6/Garrison | Triggered checkpoint 13539 | -6/Garrison | Triggered checkpoint 13804 | -6/Garrison | Found embedded Infiltrators 13810 | -6/Garrison | Discovered new exit (range 13) 13920 | -6/Garrison | Triggered checkpoint 13992 | -6/Garrison | Lost 4 allies 14159 | -6/Garrison | Discovered new exit (range 8) 14180 | -6/Garrison | Spotted B-86 Titan 14317 | -6/Garrison | Discovered new exit (range 8) 14373 | -6/Garrison | Triggered checkpoint 14392 | -6/Garrison | Garrison Relay disabled 14468 | -6/Garrison | Entered Factory 14468 | -6/Factory | Accompanied by 1 ally 14516 | -6/Factory | Discovered new exit (range 13) 14641 | -6/Factory | Identified exit to Lower Caves 14859 | -6/Factory | Repaired Arm. Huge Wheel 14909 | -6/Factory | Repaired Hrd. Heavy Armor Plating? 15104 | -6/Factory | Entered Lower Caves 15104 | -6/Lower Caves | Accompanied by 1 ally 15105 | -6/Lower Caves | Encountered a Warlord checkpoint 15204 | -6/Lower Caves | Attracted the attention of an 0b10 outpost 15463 | -6/Lower Caves | Attracted the attention of an 0b10 checkpoint 16260 | -6/Lower Caves | Discovered new exit (range 19) 16530 | -6/Lower Caves | Identified exit to Lower Caves 16532 | -6/Lower Caves | Entered another Lower Caves area 16532 | -6/Lower Caves | Accompanied by 1 ally 16533 | -6/Lower Caves | Discovered new exit (range 19) 16571 | -6/Lower Caves | Learned 4 Factory zone layouts 16810 | -6/Lower Caves | Spotted B-75 Beast 16908 | -6/Lower Caves | Encountered a Warlord checkpoint 16909 | -6/Lower Caves | Discovered new exit (range 11) 16925 | -6/Lower Caves | Identified exit to Data Miner 17119 | -6/Lower Caves | Entered Data Miner 17119 | -6/Data Miner | Discovered new exit (range 6) 17146 | -6/Data Miner | Met Data Miner 17200 | -6/Data Miner | Learned location of Section 7 (-2) 17200 | -6/Data Miner | Acquired the access code to Warlord's prototype stash 17221 | -6/Data Miner | Received God Mode back door access code from Data Miner 17261 | -6/Data Miner | Identified exit to Proximity Caves 17262 | -6/Data Miner | Entered Proximity Caves 17302 | -5/Proximity Caves | Learned Factory terminal intel 17440 | -5/Proximity Caves | Spotter reported a threat 17448 | -5/Proximity Caves | Attracted the attention of an 0b10 checkpoint 17841 | -5/Proximity Caves | Learned Factory terminal intel 18218 | -5/Proximity Caves | Discovered new exit (range 6) 18227 | -5/Proximity Caves | Identified exit to Factory 18230 | -5/Proximity Caves | Entered Factory 18230 | -5/Factory | Evolved 2 slots: Utility x2 18232 | -5/Factory | Loaded intel: 26 terminal locations 18747 | -5/Factory | Found Launcher Loader 19000 | -5/Factory | Repaired Hvy. Linear Accelerator 19046 | -5/Factory | Identified exit to Garrison 19046 | -5/Factory | Entered Garrison 19048 | -5/Garrison | Build established: Bothacker-Skirmisher 19106 | -5/Garrison | Triggered checkpoint 19291 | -5/Garrison | Garrison Relay disabled 19395 | -5/Garrison | Triggered checkpoint 19399 | -5/Garrison | Spotted B-75 Beast 19405 | -5/Garrison | Triggered checkpoint 19416 | -5/Garrison | Discovered new exit (range 10) 19514 | -5/Garrison | Destroyed B-75 Beast 19537 | -5/Garrison | Build established: Bothacker-Mutant 19753 | -5/Garrison | Expanded RIF knowledge: Patrol Navigation 19810 | -5/Garrison | Triggered checkpoint 19891 | -5/Garrison | Lost 3 allies 19899 | -5/Garrison | Garrison Relay disabled 20252 | -5/Garrison | Build established: Botlord-Mutant 20379 | -5/Garrison | Discovered new exit (range 10) 20484 | -5/Garrison | Triggered checkpoint 20512 | -5/Garrison | Triggered checkpoint 20553 | -5/Garrison | Learned Factory security intel 20561 | -5/Garrison | Garrison Relay disabled 20722 | -5/Garrison | Discovered new exit (range 13) 20830 | -5/Garrison | Identified exit to Factory 20835 | -5/Garrison | Entered Factory 20835 | -4/Factory | Accompanied by 1 ally 20835 | -4/Factory | Evolved 2 slots: Utility x2 20837 | -4/Factory | Loaded intel: 25 terminal locations 21216 | -4/Factory | Identified exit to Garrison 21449 | -4/Factory | Fabricated X-72 Disruptor (x2) 21573 | -4/Factory | Fabricated M-28 Smith (x1) 21597 | -4/Factory | Entered Garrison 21597 | -4/Garrison | Accompanied by 1 ally 21651 | -4/Garrison | Triggered checkpoint 21757 | -4/Garrison | Triggered checkpoint 21858 | -4/Garrison | Garrison Relay disabled 22212 | -4/Garrison | Spotted B-86 Titan 22216 | -4/Garrison | Triggered checkpoint 22317 | -4/Garrison | Lost 3 allies 22391 | -4/Garrison | Found Hvy. Reflective Plating 22496 | -4/Garrison | Triggered checkpoint 22542 | -4/Garrison | Garrison Relay disabled 22588 | -4/Garrison | Spotted B-75 Beast 22614 | -4/Garrison | Spotted B-90 Cyclops 22628 | -4/Garrison | Destroyed B-90 Cyclops 22640 | -4/Garrison | Destroyed B-75 Beast 22672 | -4/Garrison | Found Hvy. Reflective Plating 22692 | -4/Garrison | Rewired B-75 Beast 22785 | -4/Garrison | Discovered new exit (range 10) 22913 | -4/Garrison | Triggered checkpoint 23147 | -4/Garrison | Discovered new exit (range 15) 23170 | -4/Garrison | Identified exit to Factory 23222 | -4/Garrison | Expanded RIF knowledge: Zone Cloak 23321 | -4/Garrison | Entered Factory 23321 | -4/Factory | Accompanied by 3 allies 23335 | -4/Factory | Identified exit to Garrison 23881 | -4/Factory | Identified exit to Garrison 23908 | -4/Factory | Repaired Hvy. Reflective Plating 23945 | -4/Factory | Entered Garrison 23945 | -4/Garrison | Accompanied by 2 allies 24259 | -4/Garrison | Triggered checkpoint 24292 | -4/Garrison | Spotted B-86 Titan 24622 | -4/Garrison | Destroyed B-86 Titan 24655 | -4/Garrison | Triggered checkpoint 24808 | -4/Garrison | Triggered checkpoint 24927 | -4/Garrison | Garrison Relay disabled 25186 | -4/Garrison | Expanded RIF knowledge: Structural Interface 25347 | -4/Garrison | Triggered checkpoint 25351 | -4/Garrison | Garrison Relay disabled 25458 | -4/Garrison | Discovered new exit (range 12) 25476 | -4/Garrison | Identified exit to Research 25479 | -4/Garrison | Entered Research 25479 | -3/Research | Accompanied by 1 ally 25479 | -3/Research | Evolved 2 slots: Utility x2 25866 | -3/Research | Lost 3 allies 25875 | -3/Research | Discovered new exit (range 97) 26078 | -3/Research | Lost 3 allies 26228 | -3/Research | P-80 Master assimilated allied *Not A Garrison Survivor 26624 | -3/Research | System corruption reached 10% 26697 | -3/Research | Destroyed 8 combat bots 26750 | -3/Research | Identified exit to Testing 26764 | -3/Research | Spotted B-86 Titan 26766 | -3/Research | Assimilated Titan 8a with formatsys_high 26791 | -3/Research | Incoming assault squad redirected 26793 | -3/Research | Incoming assault squad redirected 26826 | -3/Research | Found Fusion Bomb Launcher 26829 | -3/Research | Found Fusion Bomb Launcher 26831 | -3/Research | Found Fusion Bomb Launcher 26920 | -3/Research | Found Prototype Processor 26920 | -3/Research | Identified Exp. Terrain Scan Processor 27106 | -3/Research | Entered Testing 27106 | -3/Testing | Accompanied by 3 allies 27107 | -3/Testing | Maximum security lockdown engaged 27312 | -3/Testing | Lost 4 parts (3u1w) 27315 | -3/Testing | Destroyed 29 combat bots 27371 | -3/Testing | Spotted Executioner 27376 | -3/Testing | Scanned by Researcher 27377 | -3/Testing | Spotted Investigator 27379 | -3/Testing | Destroyed Executioner 27398 | -3/Testing | Destroyed Investigator 27426 | -3/Testing | Destroyed 28 combat bots 27463 | -3/Testing | Found Prototype Launcher 27488 | -3/Testing | Spotted Executioner 27495 | -3/Testing | Spotted Executioner 27501 | -3/Testing | Core integrity fell below 50% 27510 | -3/Testing | Core integrity fell below 20% 27513 | -3/Testing | Destroyed by Executioner with Helical Railgun Last Messages --------------- 27508_ G-73 Enforcer unfolds itself. 27508_ B-74 Champion unfolds itself. 27508_ G-67 Veteran unfolds itself. 27509_ The unstable cave ceiling collapses. 27509_ M-36 Artificer repairs P-80 Master Gamma Rifle. 27509_ Enh. Optical Array destroyed. 27509_ C-30 ARC bursts open, deploying its payload. 27509_ P-80 Master unfolds itself. 27509_ H-77 Assassin unfolds itself. 27509_ P-80 Master unfolds itself. 27509_ E-15 Imp unfolds itself. 27509_ Hvy. Linear Accelerator destroyed. 27510_ Penetrated by Slug. 27510_ M-36 Artificer repairs P-80 Master. 27510_ Penetrated by Slug. 27511_ Core Analyzer destroyed. 27511_ M-36 Artificer repairs Executioner. 27512_ The unstable cave ceiling collapses. 27513_ System corrupted: Substantial component data lost. 27513_ Penetrated by Slug. Map ----- +----------------------------------------------------+ | ?????????????????# ## * ?????????????????? | | ????????????????? # # # # #??????????????????? | | ???????????????## ##### ### +#??????????????????? | | ???????##??????# # #??????????????????? | | ???????#"####### +??????????????????? | | ?????### # " " #??????????????????? | | ?????# # "%" " #??????????????????? | | ?????# " " * #??????????????????? | | ????## # # pp Ep #??????????????????? | | ????# # * ph #??????????????????? | | ????# +??????????????????? | | ????# #??????????????????? | | ????# # #??????????????????? | | ????# p #????? #??????????? | | ????## #???gb #??????????? | | ????? pE## # ######b" ###+#??????? | | ?????????# g g%" ????? | | ?????????# l g"h" ????? | | ?????????# % pgp " ????? | | ?????????# =% C ????? | | ????????# # // #############+#??????? | | ????????## ]!| ;###???????????????????? | | ????????# !e| ""#???????????????????? | | ?????# # !"???????????????????? | | ?????# # # "???????????????????? | | ?????# # #@ "???????????????????? | | ?????## # !"#?????????????????? | | ??????# # "! ;#????????????????? | | ??????# # # #;;#????????????????? | | ?????? ## ## # # #;#????????????????? | | ?????# # # ##????????????????? | | ?????# ## # #?????????????????? | | ?????### # ## [ % #?????????????????? | | ??????# """% #?????????????????? | | ??????# """* #?????????????????? | | ??????# """ "#?????????????????? | | ???????? ? "" # ""#?????????????????? | | ???????????"?"" # """ ""??????????????????? | | ?????????????? + ""? ""??????????????????? | | ?????????????? # "?? ""??????????????????? | | ???????????????? ?# ?? T???????????????????? | | ???????????????????# "???[ "???????????????????? | | ???????????????????# "???? ????????????????????? | | ???????????????????# ????? ?????????????????????? | | ???????????????????? ???????????????????????????? | | ???????????????????? ????????????????????????????? | | ?????????????????????????????????????????????????? | | ?????????????????????????????????????????????????? | | ?????????????????????????????????????????????????? | | ?????????????????????????????????????????????????? | +----------------------------------------------------+ Best States ------------- Heat Dissipation 77 Coolant Potential 100 Energy Generation 27 Energy Capacity 340 Matter Stores 300 Matter Capacity 300 Sight Range 22 Robot Scan Range 15 Terrain Scan Density 10 Jamming Range 14 Power Amplification 40 Additional Mass Support 6 Armor Coverage 975 Resistance: KI 30 Resistance: TH 25 Weapon Cycling 25 Phase Shifting 10 Evasion (%) 50 Targeting Accuracy 16 Target Analysis 8 Core Analysis 9 Recoil Reduction 2 Offensive Hacking 11 Defensive Hacking 20 Relay Coupler Types 4 Relay Coupler Value 106 Authchip Count 2 Item Schematics ----------------- Combat Drone Bay | -6/Data Miner | Free Lgt. Regenerative Plating | -6/Data Miner | Free Enh. Flexi-carbon Leg | -6/Data Miner | Free Prc. Matter Filter | -6/Data Miner | Free Plasma Sword | -6/Data Miner | Free Imp. Antigrav System | -6/Data Miner | Free Imp. Force Field | -6/Data Miner | Free Hardcell Cannon | -6/Data Miner | Free Field Propulsion Drive | -6/Data Miner | Free Adv. Datajack | -6/Data Miner | Free Robot Schematics ------------------ S-27 Virus | -6/Data Miner | Free L-41 Fighter | -6/Data Miner | Free X-72 Disruptor | -6/Data Miner | Free M-22 Extractor | -6/Data Miner | Free L-61 Swordsman | -6/Data Miner | Free G-50 Soldier | -6/Data Miner | Free A-15 Conveyor | -6/Data Miner | Free A-27 Freighter | -6/Data Miner | Free M-28 Smith | -5/Factory | Hacked Fabricated ------------ L-31 Rogue | x3 | -7/Factory | Preloaded X-72 Disruptor | x2 | -4/Factory | Authchip M-28 Smith | x1 | -4/Factory | Authchip Repaired ---------- Hrd. Light Armor Plating | 11% | -8/Materials Arm. Huge Wheel | 36% | -6/Factory Hrd. Heavy Armor Plating | 70% | -6/Factory Hvy. Linear Accelerator | 70% | -5/Factory Hvy. Reflective Plating | 51% | -4/Factory Alien Tech Used ----------------- None Achievements -------------- None Challenges ------------ None Game ------ Seed HardcellCorruptionProjector Manual? 0 Play Time 03:38:08 Cumulative 1863.0 hours Start 2025.05.25 @ 20:11:52 End 2025.05.26 @ 02:29:36 Sessions 5 Manual Loads 0 Difficulty Rogue Special Mode None Game No. 1240 Rogue 1236 Adventurer 4 Explorer 0 Win Type - Total 240 Types 179/11/19/10/3/1/4/8/4/1 Lore% 98 Gallery% 93 Achievement% 98 Wizard Run 0 Options --------- Layout 2 ASCII 0 Keyboard 1 Movement Vi Keybinds 0 Fullscreen 0 Font 24/Terminus Map View 59x48 Zoom Use 0% Tactical HUD 1 Map Filters NONE Filters NONE Steam 1 RUN: de98ab7f-2822-4188-b082-6d1270ade168